bitfinex-derivatives/quotes_BNBF0:USTF0_20251002
["timestamp","ask_amount","ask_price","bid_price","bid_amount"]
[1759443098506,0.869,1081.8,1080.2,0.16079956]
[1759443098703,0.51187946,1081.7,1080.2,0.16079956]
[1759443098907,0.51187946,1081.6,1080.2,0.16079956]
[1759443099106,0.51187946,1081.5,1080.2,0.16079956]
[1759443099311,0.89,1081.9,1080.2,0.16079956]
[1759443099510,0.51185743,1081.8,1080.2,0.16079956]
[1759443099710,0.51185743,1081.7,1080.2,0.16079956]
[1759443099910,0.51185743,1081.6,1080.2,0.16079956]
[1759443100107,0.89,1081.9,1080.2,0.16079956]
[1759443100411,0.51200513,1081.8,1080.2,0.16079956]
[1759443100606,0.51200513,1081.7,1080.2,0.16079956]
[1759443100907,0.51200513,1081.6,1080.2,0.16079956]
[1759443101108,0.89,1081.9,1080.2,0.16079956]
[1759443101308,1.248,1081.5,1080.2,0.16079956]
[1759443107117,1.085,1081.4,1080.2,0.16079956]
[1759443113919,1.085,1081.4,1079.8,1.24484119]
[1759443114124,1.085,1081.4,1080.2,0.1609282]
[1759443115921,0.51083128,1081.3,1080.2,0.1609282]
[1759443116120,1.085,1081.4,1080.2,0.1609282]
[1759443116323,0.51083113,1081.3,1080.2,0.1609282]
[1759443116626,1.085,1081.4,1080.2,0.1609282]
[1759443116820,0.51076939,1081.3,1080.2,0.1609282]
[1759443117125,1.085,1081.4,1080.2,0.1609282]
[1759443117325,0.51079131,1081.3,1080.2,0.1609282]
[1759443117624,1.085,1081.4,1080.2,0.1609282]
[1759443117823,0.51073741,1081.3,1080.2,0.1609282]
[1759443118021,1.085,1081.4,1080.2,0.1609282]
[1759443118323,0.51074728,1081.3,1080.2,0.1609282]
[1759443118524,0.51062605,1081.2,1080.2,0.1609282]
[1759443118722,0.51062605,1081.1,1080.2,0.1609282]
[1759443118919,1.085,1081.4,1080.2,0.1609282]
[1759443119124,0.51060046,1081.3,1080.2,0.1609282]
[1759443119326,0.51060046,1081.2,1080.2,0.1609282]
[1759443119521,0.51060046,1081.1,1080.2,0.1609282]
[1759443119724,1.085,1081.4,1080.2,0.1609282]
[1759443119922,0.51048034,1081.3,1080.2,0.1609282]
[1759443120126,0.51048034,1081.2,1080.2,0.1609282]
[1759443120323,0.51048034,1081.1,1080.2,0.1609282]
[1759443120526,1.085,1081.4,1080.2,0.1609282]
[1759443120829,0.51048034,1081.3,1080.2,0.1609282]
[1759443121129,0.51048034,1081.2,1080.2,0.1609282]
[1759443121428,0.51048034,1081.1,1080.2,0.1609282]
[1759443121629,1.085,1081.4,1080.2,0.1609282]
[1759443121827,0.51039135,1081.3,1080.2,0.1609282]
[1759443122029,0.51039135,1081.2,1080.2,0.1609282]
[1759443122225,0.51039135,1081.1,1080.2,0.1609282]
[1759443122432,1.085,1081.4,1080.2,0.1609282]
[1759443122626,0.51030471,1081.3,1080.2,0.1609282]
[1759443122829,0.51030471,1081.2,1080.2,0.1609282]
[1759443123029,0.51030471,1081.1,1080.2,0.1609282]
[1759443123329,1.085,1081.4,1080.2,0.1609282]
[1759443123529,0.51023697,1081.3,1080.2,0.1609282]
[1759443123730,0.51023697,1081.2,1080.2,0.1609282]
[1759443124029,0.51023697,1081.1,1080.2,0.1609282]
[1759443124230,1.085,1081.4,1080.2,0.1609282]
[1759443124428,0.51019034,1081.3,1080.2,0.1609282]
[1759443124728,0.51019034,1081.2,1080.2,0.1609282]
[1759443124928,0.51019034,1081.1,1080.2,0.1609282]
[1759443125128,1.085,1081.4,1080.2,0.1609282]
[1759443125327,0.51009936,1081.3,1080.2,0.1609282]
[1759443125629,0.51009936,1081.2,1080.2,0.1609282]
[1759443125927,0.51009936,1081.1,1080.2,0.1609282]
[1759443126130,1.085,1081.4,1080.2,0.1609282]
[1759443126426,0.51007302,1081.3,1080.2,0.1609282]
[1759443126625,0.51007302,1081.2,1080.2,0.1609282]
[1759443126925,0.51007302,1081.1,1080.2,0.1609282]
[1759443127125,1.085,1081.4,1080.2,0.1609282]
[1759443127329,0.5100717,1081.3,1080.2,0.1609282]
[1759443127524,0.5100717,1081.2,1080.2,0.1609282]
[1759443127729,0.5100717,1081.1,1080.2,0.1609282]
[1759443127930,1.085,1081.4,1080.2,0.1609282]
[1759443128129,0.51014589,1081.3,1080.2,0.1609282]
[1759443128327,0.51014589,1081.2,1080.2,0.1609282]
[1759443128527,0.51014589,1081.1,1080.2,0.1609282]
[1759443128730,1.085,1081.4,1080.2,0.1609282]
[1759443128928,0.51016329,1081.3,1080.2,0.1609282]
[1759443129126,0.51016329,1081.2,1080.2,0.1609282]
[1759443129428,0.51016329,1081.1,1080.2,0.1609282]
[1759443129626,1.085,1081.4,1080.2,0.1609282]
[1759443129831,0.51049061,1081.3,1080.2,0.1609282]
[1759443130028,0.51049061,1081.2,1080.2,0.1609282]
[1759443130329,1.085,1081.4,1080.2,0.1609282]
[1759443130330,0.51049061,1081.1,1080.2,0.1609282]
[1759443130527,1.085,1081.4,1080.2,0.1609282]
[1759443130727,0.51055775,1081.3,1080.2,0.1609282]
[1759443131028,0.51055775,1081.2,1080.2,0.1609282]
[1759443131227,0.51055775,1081.1,1080.2,0.1609282]
[1759443131432,1.085,1081.4,1080.2,0.1609282]
[1759443131632,0.51086194,1081.3,1080.2,0.1609282]
[1759443131828,0.51086194,1081.2,1080.2,0.1609282]
[1759443132026,1.085,1081.4,1080.2,0.1609282]
[1759443132027,0.51086194,1081.1,1080.2,0.1609282]
[1759443132227,1.085,1081.4,1080.2,0.1609282]
[1759443132528,0.51081891,1081.3,1080.2,0.1609282]
[1759443132727,0.51081891,1081.2,1080.2,0.1609282]
[1759443133028,0.51081891,1081.1,1080.2,0.1609282]
[1759443133332,1.085,1081.4,1080.2,0.1609282]
[1759443133532,0.51104024,1081.3,1080.2,0.1609282]
[1759443133732,0.51104024,1081.2,1080.2,0.1609282]
[1759443133928,1.085,1081.4,1080.2,0.1609282]
[1759443133929,0.51104024,1081.1,1080.2,0.1609282]
[1759443134133,1.18,1081.3,1080.2,0.1609282]
[1759443134329,0.5110006,1081.2,1080.2,0.1609282]
[1759443134533,0.5110006,1081.1,1080.2,0.1609282]
[1759443134833,1.18,1081.3,1080.2,0.1609282]
[1759443135128,0.51115819,1081.2,1080.2,0.1609282]
[1759443135332,0.51115819,1081.1,1080.2,0.1609282]
[1759443135533,1.18,1081.3,1080.2,0.1609282]
[1759443135830,0.51115852,1081.2,1080.2,0.1609282]
[1759443136029,0.51115852,1081.1,1080.2,0.1609282]
[1759443136230,1.18,1081.3,1080.2,0.1609282]
[1759443136434,0.51082749,1081.2,1080.2,0.1609282]
[1759443136734,0.51082749,1081.1,1080.2,0.1609282]
[1759443136934,1.18,1081.3,1080.2,0.1609282]
[1759443137230,0.5108335,1081.2,1080.2,0.1609282]
[1759443137435,0.5108335,1081.1,1080.2,0.1609282]
[1759443137630,1.18,1081.3,1080.2,0.1609282]
[1759443137834,0.51081951,1081.2,1080.2,0.1609282]
[1759443138032,0.51081951,1081.1,1080.2,0.1609282]
[1759443138232,1.18,1081.3,1080.2,0.1609282]
[1759443138436,0.51079739,1081.2,1080.2,0.1609282]
[1759443138732,0.51079739,1081.1,1080.2,0.1609282]
[1759443138934,1.18,1081.3,1080.2,0.1609282]
[1759443139130,0.51089296,1081.2,1080.2,0.1609282]
[1759443139332,0.51089296,1081.1,1080.2,0.1609282]
[1759443139534,1.18,1081.3,1080.2,0.1609282]
[1759443139731,0.51095176,1081.2,1080.2,0.1609282]
[1759443140034,1.18,1081.3,1080.2,0.1609282]
[1759443140035,0.51095176,1081.1,1080.2,0.1609282]
[1759443140236,0.51086865,1081.0,1080.2,0.1609282]
[1759443140533,0.51086865,1080.9,1080.2,0.1609282]
[1759443140732,1.18,1081.3,1080.2,0.1609282]
[1759443140932,0.51085631,1081.2,1080.2,0.1609282]
[1759443141132,0.51085631,1081.1,1080.2,0.1609282]
[1759443141336,0.51085631,1081.0,1080.2,0.1609282]
[1759443141535,0.51085631,1080.9,1080.2,0.1609282]
[1759443141735,1.18,1081.3,1080.2,0.1609282]
[1759443141933,0.51084466,1081.2,1080.2,0.1609282]
[1759443142132,0.51084466,1081.1,1080.2,0.1609282]
[1759443142334,0.51084466,1081.0,1080.2,0.1609282]
[1759443142534,0.51084466,1080.9,1080.2,0.1609282]
[1759443142737,1.18,1081.3,1080.2,0.1609282]
[1759443142936,0.51102352,1081.2,1080.2,0.1609282]
[1759443143137,0.51102352,1081.1,1080.2,0.1609282]
[1759443143342,0.51102352,1081.0,1080.2,0.1609282]
[1759443143641,0.51102352,1080.9,1080.2,0.1609282]
[1759443143840,1.18,1081.3,1080.2,0.1609282]
[1759443144143,0.51106665,1081.2,1080.2,0.1609282]
[1759443144338,0.51106665,1081.1,1080.2,0.1609282]
[1759443144540,0.51106665,1081.0,1080.2,0.1609282]
[1759443144741,0.51106665,1080.9,1080.2,0.1609282]
[1759443144936,1.18,1081.3,1080.2,0.1609282]
[1759443145142,0.51089841,1081.2,1080.2,0.1609282]
[1759443145341,0.51089841,1081.1,1080.2,0.1609282]
[1759443145539,0.51089841,1081.0,1080.2,0.1609282]
[1759443145739,0.51089841,1080.9,1080.2,0.1609282]
[1759443145938,1.18,1081.3,1080.2,0.1609282]
[1759443146143,0.51089263,1081.2,1080.2,0.1609282]
[1759443146341,1.18,1081.3,1080.2,0.1609282]
[1759443146342,0.51089263,1081.1,1080.2,0.1609282]
[1759443146541,0.51089263,1081.0,1080.2,0.1609282]
[1759443146843,0.51089263,1080.9,1080.2,0.1609282]
[1759443147044,1.18,1081.3,1080.2,0.1609282]
[1759443147244,0.51081458,1081.2,1080.2,0.1609282]
[1759443147446,0.51081458,1081.1,1080.2,0.1609282]
[1759443147641,0.51081458,1081.0,1080.2,0.1609282]
[1759443147944,0.51081458,1080.9,1080.2,0.1609282]
[1759443148144,1.18,1081.3,1080.2,0.1609282]
[1759443148346,0.51084793,1081.2,1080.2,0.1609282]
[1759443148642,0.51084793,1081.1,1080.2,0.1609282]
[1759443148840,0.51084793,1081.0,1080.2,0.1609282]
[1759443149140,0.51084793,1080.9,1080.2,0.1609282]
[1759443149341,1.18,1081.3,1080.2,0.1609282]
[1759443149544,0.51089827,1081.2,1080.2,0.1609282]
[1759443149839,0.51089827,1081.1,1080.2,0.1609282]
[1759443150043,0.51089827,1081.0,1080.2,0.1609282]
[1759443150241,0.51089827,1080.9,1080.2,0.1609282]
[1759443150444,1.18,1081.3,1080.2,0.1609282]
[1759443150645,0.51078703,1081.2,1080.2,0.1609282]
[1759443150845,0.51078703,1081.1,1080.2,0.1609282]
[1759443151045,0.51078703,1081.0,1080.2,0.1609282]
[1759443151245,0.51078703,1080.9,1080.2,0.1609282]
[1759443151443,1.18,1081.3,1080.2,0.1609282]
[1759443151641,0.51101338,1081.2,1080.2,0.1609282]
[1759443151947,0.51101338,1081.1,1080.2,0.1609282]
[1759443152242,1.18,1081.3,1080.2,0.1609282]
[1759443152243,0.51101338,1081.0,1080.2,0.1609282]
[1759443152546,0.51101338,1080.9,1080.2,0.1609282]
[1759443152746,1.18,1081.3,1080.2,0.1609282]
[1759443153051,0.51100747,1081.2,1080.2,0.1609282]
[1759443153246,0.51100747,1081.1,1080.2,0.1609282]
[1759443153544,0.51100747,1081.0,1079.0,1.24484119]
[1759443153848,0.51100747,1080.9,1080.0,0.16101234]
[1759443154046,0.51100747,1080.8,1080.0,0.16101234]
[1759443154244,1.18,1081.3,1079.0,1.24484119]
[1759443154546,0.51101776,1081.2,1080.0,0.16101979]
[1759443154741,0.51101776,1081.1,1079.0,1.24484119]
[1759443154941,0.51101776,1081.0,1079.5,0.16100489]
[1759443155143,1.18,1081.3,1079.5,0.16100489]
[1759443155144,0.51101776,1080.9,1079.5,0.16100489]
[1759443155442,0.51101776,1080.8,1079.5,0.16100489]
[1759443155646,1.18,1081.3,1079.5,0.16100489]
[1759443155843,0.51107107,1081.2,1079.5,0.16100489]
[1759443156143,0.51107107,1081.1,1079.5,0.16100489]
[1759443156343,0.51107107,1081.0,1079.5,0.16100489]
[1759443156543,0.51107107,1080.9,1079.5,0.16100489]
[1759443156744,1.18,1081.3,1079.5,0.16100489]
[1759443156944,0.51112536,1081.2,1079.5,0.16100489]
[1759443157148,0.51112536,1081.1,1079.5,0.16100489]
[1759443157342,0.51112536,1081.0,1079.5,0.16100489]
[1759443157547,0.51112536,1080.9,1079.5,0.16100489]
[1759443157843,1.18,1081.3,1079.5,0.16100489]
[1759443158048,0.51103944,1081.2,1079.5,0.16100489]
[1759443158247,0.51103944,1081.1,1079.5,0.16100489]
[1759443158446,0.51103944,1081.0,1079.5,0.16100489]
[1759443158646,0.51103944,1080.9,1079.5,0.16100489]
[1759443158950,1.18,1081.3,1079.5,0.16100489]
[1759443159250,0.51118259,1081.2,1079.5,0.16100489]
[1759443159451,0.51118259,1081.1,1079.5,0.16100489]
[1759443159750,0.51118259,1081.0,1079.5,0.16100489]
[1759443160045,0.51118259,1080.9,1079.5,0.16100489]
[1759443160245,1.18,1081.3,1079.5,0.16100489]
[1759443160449,0.51133355,1081.2,1079.5,0.16100489]
[1759443160646,0.51133355,1081.1,1079.5,0.16100489]
[1759443160944,0.51133355,1081.0,1079.5,0.16100489]
[1759443161148,0.51133355,1080.9,1079.5,0.16100489]
[1759443161349,1.18,1081.3,1079.5,0.16100489]
[1759443161549,0.5114316,1081.2,1079.5,0.16100489]
[1759443161849,0.5114316,1081.1,1079.5,0.16100489]
[1759443162050,0.5114316,1081.0,1079.5,0.16100489]
[1759443162249,0.5114316,1080.9,1079.5,0.16100489]
[1759443162446,1.085,1081.4,1079.5,0.16100489]
[1759443162646,0.51154176,1081.3,1079.5,0.16100489]
[1759443162849,0.51154176,1081.2,1079.5,0.16100489]
[1759443163049,1.085,1081.4,1079.5,0.16100489]
[1759443163050,0.51154176,1081.1,1079.5,0.16100489]
[1759443163246,0.51154176,1081.0,1079.5,0.16100489]
[1759443163446,0.51154176,1080.9,1079.5,0.16100489]
[1759443163648,1.378,1080.9,1079.5,0.16100489]
[1759443165957,0.51185954,1080.8,1079.5,0.16100489]
[1759443166256,1.378,1080.9,1079.5,0.16100489]
[1759443166456,0.51191591,1080.8,1079.5,0.16100489]
[1759443166753,1.378,1080.9,1079.5,0.16100489]
[1759443166956,0.51189437,1080.8,1079.5,0.16100489]
[1759443167157,1.378,1080.9,1079.5,0.16100489]
[1759443167357,0.51188818,1080.8,1079.5,0.16100489]
[1759443167557,1.378,1080.9,1079.5,0.16100489]
[1759443167857,0.51196416,1080.8,1079.5,0.16100489]
[1759443168057,1.378,1080.9,1079.5,0.16100489]
[1759443168257,0.51195614,1080.8,1079.5,0.16100489]
[1759443168558,1.378,1080.9,1079.5,0.16100489]
[1759443168755,0.51182835,1080.8,1079.5,0.16100489]
[1759443169058,1.378,1080.9,1079.5,0.16100489]
[1759443169252,0.51182189,1080.8,1079.5,0.16100489]
[1759443169555,1.378,1080.9,1079.5,1.40584608]
[1759443169754,0.51200398,1080.8,1079.5,1.40584608]
[1759443169955,1.378,1080.9,1079.5,1.40584608]
[1759443170153,0.851,1080.7,1079.5,1.40584608]
[1759443170960,0.851,1080.7,1079.5,0.16100489]
[1759443172559,0.851,1080.7,1079.5,1.40584608]
[1759443173059,0.851,1080.7,1079.5,0.16100489]
[1759443173356,0.851,1080.7,1079.5,1.40584608]
[1759443177559,0.851,1080.7,1079.6,1.24484119]
[1759443178661,0.851,1080.7,1079.7,1.24484119]
[1759443179263,0.851,1080.7,1079.8,1.24484119]
[1759443179562,0.851,1080.7,1079.7,1.24484119]
[1759443183361,0.851,1080.7,1079.8,1.24484119]
[1759443186166,0.851,1080.7,1079.9,1.24484119]
[1759443190163,1.378,1080.9,1079.9,1.24484119]
[1759443193262,1.284,1080.8,1079.9,1.24484119]
[1759443194468,1.284,1080.8,1079.5,0.16100489]
[1759443210982,1.256,1080.7,1079.5,0.16100489]
[1759443225293,0.53717264,1080.6,1079.5,0.16100489]
[1759443225491,1.256,1080.7,1079.5,0.16100489]
[1759443225689,0.53717264,1080.6,1079.5,0.16100489]
[1759443225994,0.53717264,1080.5,1079.5,0.16100489]
[1759443226192,1.256,1080.7,1079.5,0.16100489]
[1759443226394,0.53702341,1080.6,1079.5,0.16100489]
[1759443226588,0.53702341,1080.5,1079.5,0.16100489]
[1759443226791,1.256,1080.7,1079.5,0.16100489]
[1759443226990,0.53702326,1080.6,1079.5,0.16100489]
[1759443227192,0.53702326,1080.5,1079.5,0.16100489]
[1759443227497,1.256,1080.7,1079.5,0.16100489]
[1759443227698,0.53694705,1080.6,1079.5,0.16100489]
[1759443227998,0.53694705,1080.5,1079.5,0.16100489]
[1759443228293,1.256,1080.7,1079.5,0.16100489]
[1759443228593,0.53687313,1080.6,1079.5,0.16100489]
[1759443228897,0.53687313,1080.5,1079.5,0.16100489]
[1759443229100,1.284,1080.8,1079.5,0.16100489]
[1759443229393,0.5368072,1080.7,1079.5,0.16100489]
[1759443229594,0.5368072,1080.6,1079.5,0.16100489]
[1759443229795,0.5368072,1080.5,1079.5,0.16100489]
[1759443229999,1.284,1080.8,1079.5,0.16100489]
[1759443230200,0.53682065,1080.7,1079.5,0.16100489]
[1759443230400,0.53682065,1080.6,1079.5,0.16100489]
[1759443230599,0.53682065,1080.5,1079.5,0.16100489]
[1759443230797,1.284,1080.8,1079.5,0.16100489]
[1759443230997,0.53679982,1080.7,1079.5,0.16100489]
[1759443231300,0.53679982,1080.6,1079.5,0.16100489]
[1759443231600,0.53679982,1080.5,1079.5,0.16100489]
[1759443231806,1.284,1080.8,1079.5,0.16100489]
[1759443232098,0.536733,1080.7,1079.5,0.16100489]
[1759443232298,0.536733,1080.6,1079.5,0.16100489]
[1759443232497,1.284,1080.8,1079.5,0.16100489]
[1759443232699,0.53666773,1080.7,1079.5,0.16100489]
[1759443232898,0.53666773,1080.6,1079.5,0.16100489]
[1759443233095,1.284,1080.8,1079.5,0.16100489]
[1759443233300,0.536605,1080.7,1079.5,0.16100489]
[1759443233498,0.536605,1080.6,1079.5,0.16100489]
[1759443233701,1.284,1080.8,1079.5,0.16100489]
[1759443233902,0.53660211,1080.7,1079.5,0.16100489]
[1759443234198,0.53660211,1080.6,1079.5,0.16100489]
[1759443234396,1.284,1080.8,1079.5,0.16100489]
[1759443234598,0.53653786,1080.7,1079.5,0.16100489]
[1759443234800,0.53653786,1080.6,1079.5,0.16100489]
[1759443234999,1.284,1080.8,1079.5,0.16100489]
[1759443235199,0.53653769,1080.7,1079.5,0.16100489]
[1759443235402,0.53653769,1080.6,1079.5,0.16100489]
[1759443235598,0.53653769,1080.5,1079.5,0.16100489]
[1759443235901,1.284,1080.8,1079.5,0.16100489]
[1759443236096,0.53660661,1080.7,1079.5,0.16100489]
[1759443236296,0.53660661,1080.6,1079.5,0.16100489]
[1759443236500,1.345,1081.3,1079.5,0.16100489]
[1759443236699,0.53653604,1081.2,1079.5,0.16100489]
[1759443236897,0.53653604,1081.1,1079.5,0.16100489]
[1759443237102,1.345,1081.3,1079.5,0.16100489]
[1759443237103,0.53653604,1081.0,1079.5,0.16100489]
[1759443237302,0.53653604,1080.9,1079.5,0.16100489]
[1759443237603,0.53653604,1080.8,1079.5,0.16100489]
[1759443237805,0.53653604,1080.7,1079.5,0.16100489]
[1759443238003,0.53653604,1080.6,1079.5,0.16100489]
[1759443238304,1.345,1081.3,1079.5,0.16100489]
[1759443238505,0.53639827,1081.2,1079.5,0.16100489]
[1759443238705,0.53639827,1081.1,1079.5,0.16100489]
[1759443238905,0.53639827,1081.0,1079.5,0.16100489]
[1759443239102,1.345,1081.3,1079.5,0.16100489]
[1759443239103,0.53639827,1080.9,1079.5,0.16100489]
[1759443239403,0.53639827,1080.8,1079.5,0.16100489]
[1759443239606,0.53639827,1080.7,1079.5,0.16100489]
[1759443239906,0.53639827,1080.6,1079.5,0.16100489]
[1759443240206,0.53639827,1080.5,1079.5,0.16100489]
[1759443240501,1.239,1080.7,1079.5,0.16100489]
[1759443240707,0.53631732,1080.6,1079.5,0.16100489]
[1759443240904,1.239,1080.7,1079.5,0.16100489]
[1759443241106,0.53631189,1080.6,1079.5,0.16100489]
[1759443241306,0.53631189,1080.5,1079.5,0.16100489]
[1759443241503,1.239,1080.7,1079.5,0.16100489]
[1759443241804,0.53621196,1080.6,1079.5,0.16100489]
[1759443242003,0.53621196,1080.5,1079.5,0.16100489]
[1759443242203,1.239,1080.7,1079.5,0.16100489]
[1759443242508,0.53612303,1080.6,1079.5,0.16100489]
[1759443242705,0.53612303,1080.5,1079.5,0.16100489]
[1759443242908,1.239,1080.7,1079.5,0.16100489]
[1759443243108,0.53611518,1080.6,1079.5,0.16100489]
[1759443243306,0.53611518,1080.5,1079.5,0.16100489]
[1759443243605,1.239,1080.7,1079.5,0.16100489]
[1759443243809,0.5360411,1080.6,1079.5,0.16100489]
[1759443244011,0.5360411,1080.5,1079.5,0.16100489]
[1759443244306,1.239,1080.7,1079.5,0.16100489]
[1759443244506,0.53603055,1080.6,1079.5,0.16100489]
[1759443244709,0.53603055,1080.5,1079.5,0.16100489]
[1759443244907,1.239,1080.7,1079.5,0.16100489]
[1759443245113,0.53602217,1080.6,1079.5,0.16100489]
[1759443245408,0.53602217,1080.5,1079.5,0.16100489]
[1759443245606,1.239,1080.7,1079.5,0.16100489]
[1759443245809,0.53595523,1080.6,1079.5,0.16100489]
[1759443246008,0.53595523,1080.5,1079.5,0.16100489]
[1759443246209,1.239,1080.7,1079.5,0.16100489]
[1759443246412,0.53590192,1080.6,1079.5,0.16100489]
[1759443246612,0.53590192,1080.5,1079.5,0.16100489]
[1759443246813,1.239,1080.7,1079.5,0.16100489]
[1759443247016,0.53565673,1080.6,1079.5,0.16100489]
[1759443247209,0.53565673,1080.5,1079.5,0.16100489]
[1759443247414,1.239,1080.7,1079.5,0.16100489]
[1759443247611,0.53560149,1080.6,1079.5,0.16100489]
[1759443247815,0.53560149,1080.5,1079.5,0.16100489]
[1759443248116,1.239,1080.7,1079.5,0.16100489]
[1759443248317,0.53547844,1080.6,1079.5,0.16100489]
[1759443248612,0.53547844,1080.5,1079.5,0.16100489]
[1759443248913,1.239,1080.7,1079.5,0.16100489]
[1759443249213,0.53548114,1080.6,1079.5,0.16100489]
[1759443249419,1.239,1080.7,1079.5,0.16100489]
[1759443249613,0.53545448,1080.6,1079.5,0.16100489]
[1759443249817,1.239,1080.7,1079.5,0.16100489]
[1759443250015,0.53545415,1080.6,1079.5,0.16100489]
[1759443250215,1.239,1080.7,1079.5,0.16100489]
[1759443250516,0.53542626,1080.6,1079.5,0.16100489]
[1759443250714,1.239,1080.7,1079.5,0.16100489]
[1759443250913,0.53543816,1080.6,1079.5,0.16100489]
[1759443251116,1.239,1080.7,1079.5,0.16100489]
[1759443251315,0.53541907,1080.6,1079.5,0.16100489]
[1759443251617,1.239,1080.7,1079.5,0.16100489]
[1759443251818,0.53531255,1080.6,1079.5,0.16100489]
[1759443252015,1.239,1080.7,1079.5,0.16100489]
[1759443252217,0.53522447,1080.6,1079.5,0.16100489]
[1759443252421,1.239,1080.7,1079.5,0.16100489]
[1759443252621,0.53517686,1080.6,1079.5,0.16100489]
[1759443252920,1.239,1080.7,1079.5,0.16100489]
[1759443253120,0.53517686,1080.6,1079.5,0.16100489]
[1759443253319,1.239,1080.7,1079.5,0.16100489]
[1759443253618,0.53521647,1080.6,1079.5,0.16100489]
[1759443253819,1.239,1080.7,1079.5,0.16100489]
[1759443254020,0.53520356,1080.6,1079.5,0.16100489]
[1759443254216,1.239,1080.7,1079.5,0.16100489]
[1759443254418,0.53521422,1080.6,1079.5,0.16100489]
[1759443254620,1.239,1080.7,1079.5,0.16100489]
[1759443254820,0.53466486,1080.6,1079.5,0.16100489]
[1759443255018,1.239,1080.7,1079.5,0.16100489]
[1759443255224,0.53466091,1080.6,1079.5,0.16100489]
[1759443255424,1.239,1080.7,1079.5,0.16100489]
[1759443255620,0.53468172,1080.6,1079.5,0.16100489]
[1759443255820,1.239,1080.7,1079.5,0.16100489]
[1759443256025,0.53468779,1080.6,1079.5,0.16100489]
[1759443256225,1.239,1080.7,1079.5,0.16100489]
[1759443256422,0.53471855,1080.6,1079.5,0.16100489]
[1759443256621,1.239,1080.7,1079.5,0.16100489]
[1759443256821,0.53474054,1080.6,1079.5,0.16100489]
[1759443257023,1.239,1080.7,1079.5,0.16100489]
[1759443257223,0.53476043,1080.6,1079.5,0.16100489]
[1759443257424,1.239,1080.7,1079.5,0.16100489]
[1759443257727,0.53477983,1080.6,1079.5,0.16100489]
[1759443257927,1.239,1080.7,1079.5,0.16100489]
[1759443268634,2.148,1080.7,1079.5,0.16100489]
[1759443287853,0.909,1080.7,1079.5,0.16100489]
[1759443291153,1.258,1080.6,1079.5,0.16100489]
[1759443323177,1.159,1081.4,1079.5,0.16100489]
[1759443323376,0.53706986,1081.3,1079.5,0.16100489]
[1759443323577,0.53706986,1081.2,1079.5,0.16100489]
[1759443323778,0.53706986,1081.1,1079.5,0.16100489]
[1759443323981,0.53706986,1081.0,1079.5,0.16100489]
[1759443324279,0.53706986,1080.9,1079.5,0.16100489]
[1759443324478,1.159,1081.4,1079.5,0.16100489]
[1759443324677,0.53708081,1081.3,1079.5,0.16100489]
[1759443324877,0.53708081,1081.2,1079.5,0.16100489]
[1759443325076,0.53708081,1081.1,1079.5,0.16100489]
[1759443325280,0.53708081,1081.0,1079.5,0.16100489]
[1759443325578,0.53708081,1080.9,1079.5,0.16100489]
[1759443325781,1.159,1081.4,1079.5,0.16100489]
[1759443325978,1.96809052,1081.3,1079.5,0.16100489]
[1759443326181,0.53709052,1081.2,1079.5,0.16100489]
[1759443326378,0.53709052,1081.1,1079.5,0.16100489]
[1759443326577,0.53709052,1081.0,1079.5,0.16100489]
[1759443326877,0.53709052,1080.9,1079.5,0.16100489]
[1759443327082,1.431,1081.3,1079.5,0.16100489]
[1759443327381,0.53713885,1081.2,1079.5,0.16100489]
[1759443327581,0.53713885,1081.1,1079.5,0.16100489]
[1759443327779,0.53713885,1081.0,1079.5,0.16100489]
[1759443327978,0.53713885,1080.9,1079.5,0.16100489]
[1759443328181,1.431,1081.3,1079.5,0.16100489]
[1759443328383,0.53716609,1081.2,1079.5,0.16100489]
[1759443328683,0.53716609,1081.1,1079.5,0.16100489]
[1759443328881,0.53716609,1081.0,1079.5,0.16100489]
[1759443329080,0.53716609,1080.9,1079.5,0.16100489]
[1759443329279,1.431,1081.3,1079.5,0.16100489]
[1759443329484,0.53720064,1081.2,1079.5,0.16100489]
[1759443329682,0.53720064,1081.1,1079.5,0.16100489]
[1759443329885,0.53720064,1081.0,1079.5,0.16100489]
[1759443330180,0.53720064,1080.9,1079.5,0.16100489]
[1759443330381,0.53720064,1080.8,1079.5,0.16100489]
[1759443330583,1.431,1081.3,1079.5,0.16100489]
[1759443330784,0.53723646,1081.2,1079.5,0.16100489]
[1759443330982,0.53723646,1081.1,1079.5,0.16100489]
[1759443331181,0.53723646,1081.0,1079.5,0.16100489]
[1759443331381,0.53723646,1080.9,1079.5,0.16100489]
[1759443331583,0.53723646,1080.8,1079.5,0.16100489]
[1759443331786,1.431,1081.3,1079.5,0.16100489]
[1759443331984,0.53727497,1081.2,1079.5,0.16100489]
[1759443332185,0.53727497,1081.1,1079.5,0.16100489]
[1759443332480,0.53727497,1081.0,1079.5,0.16100489]
[1759443332685,0.53727497,1080.9,1079.5,0.16100489]
[1759443332981,0.53727497,1080.8,1079.5,0.16100489]
[1759443333281,1.431,1081.3,1079.5,0.16100489]
[1759443333486,0.53746856,1081.2,1079.5,0.16100489]
[1759443333781,0.53746856,1081.1,1079.5,0.16100489]
[1759443333983,0.53746856,1081.0,1079.5,0.16100489]
[1759443334181,0.53746856,1080.9,1079.5,0.16100489]
[1759443334384,0.53746856,1080.8,1079.5,0.16100489]
[1759443334583,1.431,1081.3,1079.5,0.16100489]
[1759443334785,0.53762561,1081.2,1079.5,0.16100489]
[1759443334983,0.53762561,1081.1,1079.5,0.16100489]
[1759443335186,0.53762561,1081.0,1079.5,0.16100489]
[1759443335386,0.53762561,1080.9,1079.5,0.16100489]
[1759443335685,0.53762561,1080.8,1079.5,0.16100489]
[1759443335885,1.055,1081.1,1079.5,0.16100489]
[1759443336088,0.53772032,1081.0,1079.5,0.16100489]
[1759443336385,0.53772032,1080.9,1079.5,0.16100489]
[1759443336683,0.53772032,1080.8,1079.5,0.16100489]
[1759443336883,1.055,1081.1,1079.5,0.16100489]
[1759443337086,0.53777194,1081.0,1079.5,0.16100489]
[1759443337289,0.53777194,1080.9,1079.5,0.16100489]
[1759443337588,0.53777194,1080.8,1079.5,0.16100489]
[1759443337787,1.055,1081.1,1079.5,0.16100489]
[1759443337989,0.53783678,1081.0,1079.5,0.16100489]
[1759443338285,0.53783678,1080.9,1079.5,0.16100489]
[1759443338584,0.53783678,1080.8,1079.5,0.16100489]
[1759443338788,1.055,1081.1,1079.5,0.16100489]
[1759443339083,0.53795345,1081.0,1079.5,0.16100489]
[1759443339283,0.53795345,1080.9,1079.5,0.16100489]
[1759443339486,0.53795345,1080.8,1079.5,0.16100489]
[1759443339688,1.055,1081.1,1079.5,0.16100489]